bitfinex-derivatives/quotes_SOLF0:USTF0_20251107
["timestamp","ask_amount","ask_price","bid_price","bid_amount"]
[1762539562647,5.5513,162.23,162.16,3.01]
[1762539563243,2.45,162.26,162.16,3.01]
[1762539563747,0.04387773,162.23,162.19,3.05057083]
[1762539563942,0.04057829,162.23,162.19,3.05189662]
[1762539564138,0.04057829,162.23,162.19,0.04189662]
[1762539564340,2.45057829,162.23,162.19,0.04189662]
[1762539566751,2.41,162.21,162.19,0.04189662]
[1762539566946,2.41,162.22,162.19,0.04189662]
[1762539567348,2.41,162.2,162.19,0.04189662]
[1762539567547,7.9623,162.2,162.19,0.04189662]
[1762539567751,0.04057829,162.23,162.19,0.04189662]
[1762539567945,2.45057829,162.23,162.19,0.04189662]
[1762539568641,8.00207829,162.23,162.19,0.04189662]
[1762539569056,0.04057829,162.23,162.19,3.05189662]
[1762539569246,2.41,162.29,162.2,3.01]
[1762539569453,2.41,162.33,162.2,3.01]
[1762539569749,4.65480125,162.32,162.22,8.5616]
[1762539569949,4.65480125,162.31,162.23,3.01]
[1762539570250,8.08139026,162.37,162.26,5.5499]
[1762539570450,2.41,162.35,162.23,3.01]
[1762539570648,4.6533853,162.36,162.3,0.04269361]
[1762539570649,2.41,162.33,162.3,0.04269361]
[1762539570855,2.41,162.33,162.18,62.0]
[1762539570856,2.41,162.3,162.19,3.01]
[1762539571552,5.67139026,162.34,162.19,3.01]
[1762539571751,2.41,162.32,162.19,3.01]
[1762539571959,2.45297194,162.28,162.25,0.04671494]
[1762539572550,0.04297194,162.28,162.25,0.04671494]
[1762539572958,2.45297194,162.28,162.25,0.04671494]
[1762539573161,0.04297194,162.28,162.25,3.14671494]
[1762539573953,4.65056202,162.37,162.26,3.1]
[1762539574264,64.02,162.41,162.3,3.1]
[1762539574556,4.64726748,162.4,162.3,3.1]
[1762539574756,71.9753,162.41,162.3,3.1]
[1762539575061,4.64724516,162.4,162.34,0.04690874]
[1762539575258,10.19228077,162.39,162.34,3.14690874]
[1762539575561,7.956,162.39,162.34,0.04690874]
[1762539575759,64.02,162.41,162.34,3.14690874]
[1762539575948,7.05607691,162.4,162.34,0.04690874]
[1762539576257,2.41,162.38,162.34,0.04690874]
[1762539576655,64.02,162.41,162.34,0.04690874]
[1762539576861,4.64657918,162.4,162.34,0.04690874]
[1762539577071,64.02,162.41,162.34,0.04690874]
[1762539577380,5.5455,162.4,162.34,0.04690874]
[1762539577676,64.02,162.41,162.34,0.04690874]
[1762539577870,14.44841337,162.45,162.34,3.14690874]
[1762539577871,5.67139026,162.45,162.34,3.14690874]
[1762539578070,9.85357639,162.47,162.38,0.04591195]
[1762539578071,2.41,162.47,162.38,0.04591195]
[1762539578376,4.64267394,162.45,162.38,0.04591195]
[1762539578573,2.41,162.47,162.38,3.14591195]
[1762539578875,4.6425024,162.45,162.38,3.14591195]
[1762539579073,3.8443472,162.46,162.38,3.14591195]
[1762539579266,2.41,162.44,162.38,0.04591195]
[1762539579473,2.41,162.42,162.38,0.04591195]
[1762539579666,15.88276057,162.46,162.38,0.04591195]
[1762539579667,2.41,162.41,162.38,0.04591195]
[1762539580076,5.67139026,162.45,162.38,3.14591195]
[1762539580278,1.4343472,162.46,162.4,3.1]
[1762539580979,1.4343472,162.46,162.41,3.15248766]
[1762539581575,4.4043472,162.46,162.41,0.04248766]
[1762539581876,2.97,162.45,162.41,0.04248766]
[1762539583179,2.97,162.44,162.41,0.04248766]
[1762539584970,8.5142,162.44,162.41,0.04248766]
[1762539585178,2.97,162.45,162.41,0.04248766]
[1762539585877,2.97,162.43,162.31,3.11]
[1762539586071,2.97,162.4,162.31,3.11]
[1762539586269,5.546,162.39,162.31,3.11]
[1762539586575,2.97,162.39,162.31,3.11]
[1762539586876,8.5165,162.37,162.25,3.11]
[1762539587176,0.04075778,162.33,162.3,3.11]
[1762539587380,0.04075778,162.33,162.3,3.15282302]
[1762539587381,0.04518628,162.33,162.3,3.15282302]
[1762539587578,0.04518628,162.33,162.3,0.04282302]
[1762539587888,8.70532045,162.33,162.3,0.04282302]
[1762539588073,2.97,162.32,162.3,0.04282302]
[1762539588373,0.04518628,162.33,162.3,0.04282302]
[1762539588973,0.04518628,162.33,162.3,3.15282302]
[1762539592176,4.64286119,162.39,162.32,3.11]
[1762539592378,2.97,162.42,162.32,3.11]
[1762539592573,5.67139026,162.43,162.28,3.11]
[1762539592574,2.97,162.4,162.28,3.11]
[1762539592774,2.97,162.37,162.28,8.6596]
[1762539593178,2.97,162.35,162.31,0.04526427]
[1762539593379,5.67139026,162.43,162.34,3.11]
[1762539593572,5.67139026,162.45,162.37,0.04545441]
[1762539593780,4.64895606,162.44,162.37,0.04545441]
[1762539593977,4.64895606,162.43,162.37,0.04545441]
[1762539594181,1.4343472,162.46,162.37,3.15545441]
[1762539594182,4.64895606,162.42,162.37,3.15545441]
[1762539594479,7.10573746,162.46,162.37,3.15545441]
[1762539594480,1.4343472,162.46,162.37,3.15545441]
[1762539594779,5.67139026,162.44,162.37,0.04545441]
[1762539594979,4.64945942,162.43,162.37,0.04545441]
[1762539595180,4.64945942,162.42,162.37,0.04545441]
[1762539595385,2.97,162.4,162.37,0.04545441]
[1762539595585,2.97,162.38,162.37,0.04545441]
[1762539595780,7.61945942,162.38,162.37,0.04545441]
[1762539596085,7.61945942,162.38,162.29,3.11]
[1762539596286,4.64945942,162.37,162.29,3.11]
[1762539596582,4.64945942,162.36,162.29,3.11]
[1762539596787,2.97,162.38,162.29,3.11]
[1762539596985,4.65358701,162.37,162.29,3.11]
[1762539597182,0.04614905,162.35,162.32,0.04222727]
[1762539598188,0.04614905,162.35,162.32,3.15222727]
[1762539599088,0.04614905,162.35,162.32,8.70012727]
[1762539599284,0.04614905,162.35,162.33,3.11]
[1762539599883,0.04614905,162.35,162.34,3.11]
[1762539600282,4.66080675,162.41,162.34,3.11]
[1762539600480,4.66080675,162.4,162.36,3.11]
[1762539600683,4.4043472,162.46,162.37,3.11]
[1762539600890,4.65980521,162.45,162.37,3.11]
[1762539601084,4.65980521,162.44,162.37,3.11]
[1762539601285,4.65980521,162.43,162.37,3.11]
[1762539601486,4.66221904,162.42,162.39,0.03970704]
[1762539601691,2.97,162.43,162.39,0.03970704]
[1762539602088,2.93,162.41,162.39,0.03970704]
[1762539602293,7.59620409,162.4,162.39,0.03970704]
[1762539602491,7.59620409,162.4,162.32,3.14]
[1762539602693,4.66620409,162.39,162.32,8.688]
[1762539602887,4.66620409,162.38,162.32,3.14]
[1762539603089,2.93,162.4,162.32,3.14]
[1762539603290,4.67096392,162.39,162.34,3.14]
[1762539603497,1.4343472,162.46,162.36,3.14]
[1762539604493,8.61780204,162.45,162.39,0.04242827]
[1762539604689,8.61780204,162.44,162.39,0.04242827]
[1762539604883,5.5453,162.41,162.39,0.04242827]
[1762539605088,2.93,162.4,162.39,0.04242827]
[1762539605893,5.546,162.39,162.32,3.14]
[1762539606190,2.93,162.4,162.32,3.14]
[1762539606394,2.93,162.4,162.33,5.5477]
[1762539606791,0.04462491,162.38,162.35,0.04178285]
[1762539606997,2.97462491,162.38,162.35,0.04178285]
[1762539607586,0.04462491,162.38,162.35,3.18178285]
[1762539607795,0.04462491,162.38,162.35,0.04178285]
[1762539607996,2.97462491,162.38,162.35,0.04178285]
[1762539608492,2.93,162.37,162.35,0.04178285]
[1762539608696,0.04462491,162.38,162.35,0.04178285]
[1762539608894,2.97462491,162.38,162.35,0.04178285]
[1762539609491,2.93,162.37,162.35,0.04178285]
[1762539609999,2.93,162.36,162.27,7.67]
[1762539610193,2.93,162.36,162.28,3.14]
[1762539610592,5.5463,162.38,162.28,3.14]
[1762539610998,0.04481812,162.35,162.31,0.04337976]
[1762539611197,2.97481812,162.35,162.31,0.04337976]
[1762539613498,0.04481812,162.35,162.31,3.18337976]
[1762539613887,2.97481812,162.35,162.31,0.04337976]
[1762539614397,8.66495229,162.35,162.31,0.04337976]
[1762539614600,2.93,162.33,162.27,4.53]
[1762539614896,2.93,162.3,162.27,4.53]
[1762539615603,2.97446086,162.3,162.27,4.56910844]
[1762539616895,4.68757163,162.29,162.27,4.56910844]
[1762539617192,2.97446086,162.3,162.27,4.56910844]
[1762539617588,2.93,162.28,162.27,4.56910844]
[1762539617794,7.61912513,162.28,162.27,4.56910844]
[1762539618000,7.61912513,162.28,162.27,4.47822268]
[1762539618193,7.61912513,162.28,162.27,0.03910844]
[1762539618600,2.93,162.28,162.27,0.03910844]
[1762539618796,7.61844742,162.28,162.27,0.03910844]
[1762539618999,2.93,162.27,162.18,3.14]
[1762539619197,2.93,162.26,162.18,3.14]
[1762539619404,2.93,162.26,162.2,5.5521]
[1762539619594,2.93,162.26,162.18,3.14]
[1762539619993,0.04737586,162.24,162.2,3.18245845]
[1762539620603,0.04737586,162.24,162.22,8.6914]
[1762539621904,0.04737586,162.24,162.23,3.14]
[1762539622295,0.04737586,162.24,162.22,5.5514]
[1762539622494,0.04737586,162.24,162.22,3.14]
[1762539622696,2.97737586,162.24,162.2,0.04245845]
[1762539623902,0.04737586,162.24,162.2,3.18245845]
[1762539624699,0.04737586,162.24,162.2,0.04245845]
[1762539625006,0.04737586,162.24,162.2,8.73465845]
[1762539625200,0.04737586,162.24,162.21,3.14]
[1762539625701,0.04737586,162.24,162.2,0.04245845]
[1762539626002,0.04737586,162.24,162.2,3.18245845]
[1762539626203,2.97737586,162.24,162.2,0.04245845]
[1762539626798,8.4819,162.22,162.2,0.04245845]
[1762539627002,2.93,162.22,162.2,0.04245845]
[1762539627702,8.52847586,162.24,162.2,0.04245845]
[1762539627903,2.93,162.23,162.2,0.04245845]
[1762539628301,8.4815,162.23,162.2,0.04245845]
[1762539628505,2.93,162.23,162.2,0.04245845]
[1762539628708,2.97737586,162.24,162.2,0.04245845]
[1762539628904,2.97737586,162.24,162.2,3.18245845]
[1762539628905,0.04737586,162.24,162.2,3.18245845]
[1762539629106,0.04737586,162.24,162.2,8.73455845]
[1762539629310,2.97737586,162.24,162.2,0.04245845]
[1762539629609,2.93,162.23,162.2,0.04245845]
[1762539629811,2.93,162.23,162.11,7.8]
[1762539630110,0.04737586,162.24,162.11,7.8]
[1762539630111,2.93,162.21,162.12,3.14]
[1762539630796,2.97490059,162.18,162.15,0.04666378]
[1762539630997,0.04490059,162.18,162.15,3.18666378]
[1762539631611,0.04490059,162.18,162.15,0.04666378]
[1762539632310,2.98490059,162.18,162.15,0.04666378]
[1762539634004,0.04490059,162.18,162.15,0.04666378]
[1762539635002,0.04490059,162.18,162.15,5.60056378]
[1762539635197,0.04490059,162.18,162.15,0.04666378]
[1762539636407,0.04490059,162.18,162.15,2.99666378]
[1762539636808,0.04490059,162.18,162.16,5.5536]
[1762539637308,0.04490059,162.18,162.15,2.99666378]
[1762539637902,0.04490059,162.18,162.17,2.95]
[1762539638509,0.04490059,162.18,162.15,0.04666378]
[1762539638801,0.04490059,162.18,162.15,2.99666378]
[1762539640607,0.04490059,162.18,162.16,8.5035]
[1762539640803,0.04490059,162.18,162.15,0.04666378]
[1762539641209,0.04490059,162.18,162.15,2.99666378]
[1762539642711,0.04490059,162.18,162.15,8.55056378]
[1762539644011,0.04490059,162.18,162.15,0.04666378]
[1762539647513,3.13490059,162.18,162.15,0.04666378]
[1762539648433,3.09,162.16,162.15,0.04666378]
[1762539648830,3.09,162.16,162.07,2.95]
[1762539649035,5.5532,162.18,162.07,2.95]
[1762539649235,4.77945957,162.17,162.07,2.95]
[1762539649433,3.09,162.19,162.11,5.5552]
[1762539649634,5.70463066,162.21,162.11,5.5552]
[1762539649635,4.77829865,162.18,162.11,5.5552]
[1762539649836,3.09,162.16,162.13,0.04144073]
[1762539652130,3.09,162.14,162.13,0.04144073]
[1762539653937,3.09,162.09,162.06,6.69]
[1762539654432,8.6459,162.1,162.06,6.69]
[1762539654638,3.09,162.09,162.06,6.69]
[1762539655133,3.13666933,162.09,162.06,6.72996087]
[1762539655334,0.04666933,162.09,162.06,6.72996087]
[1762539655552,3.13666933,162.09,162.06,6.72996087]
[1762539655839,3.09,162.07,162.06,6.72996087]
[1762539656542,3.09,162.07,162.06,6.087e-05]
[1762539656543,4.33,162.07,162.06,6.087e-05]
[1762539657041,9.11520761,162.07,162.06,6.087e-05]
[1762539657243,9.11377865,162.07,162.06,6.087e-05]
[1762539657634,4.33,162.07,162.06,6.087e-05]
[1762539658139,3.09,162.07,162.06,6.087e-05]
[1762539659137,9.11295471,162.07,161.94,8.93]
[1762539659343,3.09,162.05,161.95,2.95]
[1762539659737,3.09,162.05,161.97,2.95]
[1762539660442,0.04618628,162.03,162.0,8.5089]
[1762539660831,0.04618628,162.03,162.0,2.95]
[1762539661432,0.04618628,162.03,161.99,0.03996315]
[1762539661433,3.13618628,162.03,161.99,0.03996315]
[1762539662044,0.04618628,162.03,161.99,2.99996315]
[1762539662443,3.05618628,162.03,161.99,0.03996315]
[1762539664246,3.05618628,162.03,161.99,2.99996315]
[1762539664953,3.05618628,162.03,161.99,0.03996315]
[1762539665157,3.01,162.01,161.99,0.03996315]
[1762539665942,7.93166998,162.0,161.99,0.03996315]
[1762539667240,3.01,161.99,161.94,5.98]
[1762539667443,3.01,161.97,161.94,5.98]
[1762539667642,7.92893058,161.96,161.87,2.96]
[1762539667855,4.91893058,161.95,161.87,2.96]
[1762539668149,8.5707,161.96,161.89,0.04497482]
[1762539668346,0.04308253,161.93,161.9,2.96]
[1762539668545,0.04308253,161.93,161.89,0.04497482]
[1762539668854,8.61488253,161.93,161.89,0.04497482]
[1762539669056,3.05308253,161.93,161.89,0.04497482]
[1762539669861,0.04308253,161.93,161.89,3.00497482]
[1762539670248,3.01,162.01,161.92,2.96]
[1762539670551,7.91909708,162.0,161.92,2.96]
[1762539670757,4.90909708,161.99,161.93,5.5614]
[1762539671059,7.91909708,161.98,161.93,5.5614]
[1762539671267,0.04313388,161.97,161.94,0.04639046]
[1762539672458,0.04313388,161.97,161.94,3.00639046]
[1762539672954,0.04313388,161.97,161.96,2.96]
[1762539673254,3.01,162.05,161.96,2.96]
[1762539673451,3.01,162.03,161.96,2.96]
[1762539673756,3.01,162.03,161.92,2.96]
[1762539673757,3.01,162.01,161.92,2.96]
[1762539674054,0.04085594,161.98,161.95,0.04432786]
[1762539674255,3.05085594,161.98,161.95,0.04432786]
[1762539674457,3.01,161.96,161.84,11.69888839]
[1762539674762,3.01,161.94,161.85,2.96]
[1762539675448,3.0516419,161.91,161.88,0.04148629]
[1762539675755,3.0516419,161.91,161.89,8.5227]
[1762539675756,0.04099504,161.91,161.89,8.5227]
[1762539675942,0.04099504,161.91,161.88,0.04632992]
[1762539678254,3.05099504,161.91,161.88,0.04632992]
[1762539678657,3.01,161.9,161.88,0.04632992]
[1762539680550,8.5727,161.9,161.88,0.04632992]
[1762539680748,3.01,161.89,161.88,0.04632992]
[1762539680950,3.01,161.89,161.81,13.0155]
[1762539680951,7.90606318,161.89,161.81,7.45]
[1762539681177,3.01,161.87,161.81,4.49]
[1762539681344,3.01,161.85,161.81,4.49]
[1762539681551,3.01,161.82,161.81,4.49]
[1762539681752,3.01,161.82,161.72,8.73888839]
[1762539681753,3.01,161.82,161.73,2.96]
[1762539681957,3.01,161.78,161.76,0.04278746]
[1762539682263,3.01,161.78,161.75,0.04374978]
[1762539683060,3.04983848,161.79,161.75,0.04374978]
[1762539683369,0.03983848,161.79,161.75,3.00374978]
[1762539685256,3.04983848,161.79,161.75,0.04374978]
[1762539686254,3.01,161.77,161.75,0.04374978]
[1762539686463,3.04983848,161.79,161.75,0.04374978]
[1762539686667,4.87869127,161.78,161.75,3.00374978]
[1762539686965,3.04983848,161.79,161.75,0.04374978]
[1762539687155,3.01,161.77,161.75,0.04374978]
[1762539687363,3.01,161.75,161.69,4.84]
[1762539687557,3.01,161.73,161.69,4.84]
[1762539687959,3.01,161.77,161.69,7.8]
[1762539688156,4.87709822,161.76,161.69,7.8]
[1762539688465,0.04108644,161.74,161.71,0.04750039]
[1762539689052,0.04108644,161.74,161.71,3.00750039]
[1762539691265,0.04108644,161.74,161.72,2.96]
[1762539691656,0.04108644,161.74,161.72,8.5285]
[1762539691852,0.04108644,161.74,161.72,5.5685]
[1762539692464,0.04108644,161.74,161.72,8.5985]
[1762539692661,0.04108644,161.74,161.73,3.03]
[1762539693267,5.66937621,161.81,161.75,8.5977]
[1762539693458,8.01394967,161.8,161.75,8.5977]
[1762539693659,8.01394967,161.79,161.73,5.5683]
[1762539693860,4.87394967,161.78,161.72,3.03]
[1762539694067,5.66937621,161.81,161.72,3.03]
[1762539694365,0.0430264,161.78,161.75,0.040445]
[1762539694759,0.0430264,161.78,161.75,3.070445]
[1762539695268,4.87739534,161.77,161.75,3.070445]
[1762539695466,0.0430264,161.78,161.75,3.070445]
[1762539695666,4.87739627,161.77,161.75,3.070445]
[1762539695869,0.0430264,161.78,161.75,3.070445]
[1762539696260,0.0430264,161.78,161.75,8.637945]
[1762539696461,0.0430264,161.78,161.75,3.070445]
[1762539696762,4.82513813,161.77,161.75,0.040445]
[1762539696960,4.82543687,161.76,161.75,0.040445]
[1762539697455,3.1830264,161.78,161.75,0.040445]
[1762539697661,4.82705871,161.77,161.75,0.040445]
[1762539697858,4.82733288,161.76,161.75,0.040445]
[1762539698871,7.96733288,161.76,161.69,4.84]
[1762539699073,7.96733288,161.75,161.69,4.84]
[1762539699265,3.14,161.73,161.69,4.84]
[1762539699476,3.14,161.73,161.69,7.87]
[1762539699666,4.83273735,161.72,161.69,7.87]
[1762539699970,0.04101956,161.72,161.69,13.48583861]
[1762539700167,4.83449175,161.71,161.69,4.88623861]
[1762539700374,0.04101956,161.72,161.69,4.88623861]
[1762539700670,0.04101956,161.72,161.71,8.6891]
[1762539700967,4.87509954,161.72,161.69,4.88623861]
[1762539701168,3.15,161.7,161.69,4.22011118]
[1762539701474,7.98407998,161.7,161.69,1.118e-05]
[1762539702170,15.42765637,161.7,161.69,1.118e-05]
[1762539702674,7.98407998,161.7,161.69,1.118e-05]
[1762539702859,16.66765637,161.7,161.69,1.118e-05]
[1762539703272,9.22407998,161.7,161.69,1.118e-05]
[1762539703467,3.15,161.66,161.59,5.573]
[1762539703663,4.83407998,161.65,161.59,5.573]
[1762539703886,4.83407998,161.64,161.56,8.8619]
[1762539704066,4.83407998,161.63,161.56,8.8619]
[1762539704381,0.04049854,161.61,161.58,3.16394148]
[1762539704584,0.04049854,161.61,161.6,3.12]
[1762539705281,0.04049854,161.61,161.59,5.5731]
[1762539705477,0.04049854,161.61,161.59,8.6931]
[1762539705885,0.04049854,161.61,161.6,3.12]
[1762539706883,3.15,161.69,161.62,5.5719]
[1762539707083,4.83018474,161.68,161.62,5.5719]
[1762539707290,7.98018474,161.67,161.6,8.6927]
[1762539707489,4.83018474,161.66,161.6,3.12]
[1762539707683,4.869273,161.65,161.61,3.15962811]
[1762539707889,0.03908826,161.65,161.61,8.73192811]
[1762539708081,3.18908826,161.65,161.61,5.61192811]
[1762539708278,3.18908826,161.65,161.61,0.03962811]
[1762539708279,4.83258185,161.64,161.61,0.03962811]
[1762539708485,3.18908826,161.65,161.61,0.03962811]
[1762539708684,3.15,161.63,161.61,0.03962811]
[1762539709292,4.8337567,161.62,161.61,0.03962811]
[1762539709480,7.9837567,161.62,161.61,0.03962811]
[1762539709685,7.9837567,161.62,161.54,8.6947]
[1762539709886,4.8337567,161.61,161.54,3.12]
[1762539710080,3.15,161.62,161.54,3.12]
[1762539710286,4.83367474,161.61,161.54,3.12]
[1762539710489,3.15,161.62,161.54,3.12]
[1762539710691,4.83365744,161.61,161.56,0.04167286]
[1762539710991,0.04284648,161.6,161.57,3.12]
[1762539711194,0.04284648,161.6,161.57,8.6937]
[1762539712582,0.04284648,161.6,161.57,3.12]
[1762539713092,0.04284648,161.6,161.56,3.16167286]
[1762539713291,0.04284648,161.6,161.56,8.73577286]
[1762539713588,0.04284648,161.6,161.56,3.16167286]
[1762539714387,3.19284648,161.6,161.56,0.04167286]
[1762539714790,0.04284648,161.6,161.56,3.16167286]
[1762539714984,3.19284648,161.6,161.56,0.04167286]
[1762539715987,3.15,161.58,161.56,0.04167286]
[1762539717298,3.15,161.57,161.56,0.04167286]
[1762539717597,7.9879911,161.57,161.56,0.04167286]
[1762539718986,5.5747,161.55,161.48,3.12]
[1762539719325,3.15,161.53,161.44,3.12]
[1762539719590,5.5761,161.51,161.44,3.12]
[1762539719795,4.84535823,161.5,161.44,3.12]
[1762539719996,8.04147001,161.49,161.45,3.16684752]
[1762539720296,0.04611178,161.49,161.45,3.16684752]
[1762539720892,7.99929689,161.48,161.45,0.04684752]
[1762539721089,7.99993707,161.47,161.45,0.04684752]
[1762539721392,7.99993707,161.46,161.45,0.04684752]
[1762539721597,4.84993707,161.46,161.45,0.04684752]
[1762539721801,3.19611178,161.49,161.45,0.04684752]
[1762539721992,8.0073862,161.48,161.45,0.04684752]
[1762539722186,0.04611178,161.49,161.45,0.04684752]
[1762539722187,3.16,161.46,161.45,0.04684752]
[1762539722495,3.16,161.46,161.38,8.7919]
[1762539722496,8.01112025,161.46,161.38,8.7919]
[1762539722698,4.85112025,161.45,161.39,3.05]
[1762539722899,8.83414072,161.5,161.42,3.05]
[1762539723103,4.84635869,161.49,161.45,3.05]
[1762539723290,0.04674847,161.49,161.46,3.05]
[1762539723690,0.04674847,161.49,161.47,5.5772]
[1762539723991,0.04674847,161.49,161.48,3.05]
[1762539724193,3.16,161.56,161.48,3.05]
[1762539724493,3.16,161.48,161.4,3.05]
[1762539724797,5.5779,161.46,161.4,3.05]
[1762539724998,8.00732243,161.45,161.4,3.05]
[1762539725301,0.04680464,161.44,161.41,3.09735542]
[1762539725598,0.04680464,161.44,161.43,3.05]
[1762539725899,0.04680464,161.44,161.42,5.5788]
[1762539725900,5.43582463,161.44,161.42,5.5788]
[1762539726098,5.38901999,161.43,161.42,5.5788]
[1762539726393,3.63103874,161.43,161.42,6.8188]
[1762539726591,15.37494763,161.5,161.43,1.24]
[1762539726786,5.69174596,161.45,161.41,5.7419]
[1762539726985,3.16,161.53,161.41,5.7419]
[1762539727493,0.04305206,161.49,161.45,0.0447732]
[1762539727696,0.04305206,161.49,161.47,5.5771]
[1762539727890,0.04305206,161.49,161.48,3.05]
[1762539730587,0.04305206,161.49,161.48,4.29]
[1762539730792,8.7344,161.56,161.49,3.05]
[1762539731098,3.16,161.56,161.45,3.05]
[1762539731396,3.16,161.53,161.45,3.05]
[1762539731797,3.19994936,161.51,161.47,0.04549847]
[1762539731997,3.19994936,161.51,161.47,0.04165213]
[1762539732701,8.77604936,161.51,161.47,0.04165213]
[1762539733001,0.03994936,161.51,161.47,0.04165213]
[1762539733894,0.03994936,161.51,161.47,3.09165213]
[1762539734395,3.19994936,161.51,161.47,0.04165213]
[1762539735194,8.77604936,161.51,161.47,0.04165213]
[1762539735500,3.19994936,161.51,161.47,0.04165213]
[1762539735998,0.03994936,161.51,161.47,3.09165213]
[1762539736309,3.19994936,161.51,161.47,0.04165213]
[1762539737107,3.16,161.49,161.47,0.04165213]
[1762539737500,3.16,161.49,161.39,3.05]
[1762539737798,5.578,161.45,161.39,8.6301]
[1762539737993,3.16,161.46,161.37,6.42]
[1762539738396,5.5792,161.42,161.37,6.42]
[1762539738599,5.29128037,161.41,161.38,0.04575785]
[1762539738796,3.16,161.39,161.38,0.04575785]
[1762539738998,8.41010773,161.39,161.38,0.04575785]
[1762539739403,3.16,161.38,161.29,3.05]
[1762539739598,3.16,161.36,161.29,3.05]
[1762539739803,8.41010773,161.35,161.22,3.05]
[1762539740007,5.7419,161.38,161.25,5.5848]
[1762539740008,8.41010773,161.34,161.25,5.5848]
[1762539740206,5.25010773,161.33,161.25,3.05]
[1762539740400,0.04370638,161.31,161.27,0.04008164]
[1762539740604,5.25010773,161.3,161.27,8.67408164]
[1762539740802,5.25010773,161.29,161.27,3.09008164]
[1762539741020,5.25010773,161.28,161.27,0.04008164]
[1762539742503,8.41010773,161.28,161.27,0.04008164]
[1762539742806,8.41010773,161.28,161.19,3.05]
[1762539743008,5.25010773,161.27,161.19,8.6369]
[1762539743212,5.25010773,161.26,161.19,3.05]
[1762539743512,5.25010773,161.25,161.19,3.05]
[1762539743809,8.45760517,161.24,161.21,0.04522231]
[1762539744112,5.25010773,161.23,161.21,0.04760377]
[1762539744311,5.25010773,161.22,161.21,0.04760377]
[1762539745904,5.25010773,161.22,161.21,3.09760377]
[1762539746205,5.2371304,161.22,161.21,0.04760377]
[1762539747015,8.3971304,161.22,161.21,0.04760377]
[1762539747312,5.2371304,161.22,161.21,0.04760377]
[1762539748605,19.76438503,161.22,161.15,6.52]
[1762539748808,5.2371304,161.21,161.17,8.6374]
[1762539749011,5.2371304,161.2,161.17,8.6374]
[1762539749309,5.2371304,161.19,161.17,8.6374]
[1762539749505,5.2371304,161.18,161.17,8.6374]
[1762539750914,5.2371304,161.18,161.15,8.6383]
[1762539751109,5.2371304,161.17,161.15,8.6383]
[1762539751320,5.2371304,161.16,161.15,8.6383]
[1762539751709,5.2371304,161.16,161.15,3.05]
[1762539751918,5.2371304,161.16,161.13,8.639]
[1762539752214,5.2371304,161.15,161.11,8.7097]
[1762539752410,5.2371304,161.14,161.11,8.7097]
[1762539752607,0.04562422,161.15,161.12,3.12]
[1762539752811,0.04089036,161.15,161.12,3.12]
[1762539753006,0.04089036,161.15,161.12,8.7092]
[1762539753410,5.21555868,161.14,161.12,8.7092]
[1762539753609,0.04089036,161.15,161.13,5.5889]
[1762539753817,0.04089036,161.15,161.12,3.12]
[1762539753818,5.21545566,161.14,161.12,3.12]
[1762539754123,0.04089036,161.15,161.06,3.12]
[1762539754320,0.0462518,161.12,161.11,3.12]
[1762539754518,0.04424062,161.13,161.11,3.12]
[1762539754717,0.04424062,161.13,161.1,5.5899]
[1762539755415,5.21167875,161.12,161.09,3.12]
[1762539755616,0.04424062,161.13,161.09,3.12]
[1762539755924,3.22424062,161.13,161.08,5.5906]
[1762539756124,3.22424062,161.13,161.08,8.7106]
[1762539756425,3.22424062,161.13,161.06,3.12]
[1762539756610,3.22424062,161.13,161.08,5.5906]
[1762539757119,3.22424062,161.13,161.05,8.13]
[1762539757322,3.22424062,161.13,161.07,5.5912]
[1762539757714,0.04424062,161.13,161.09,8.7103]
[1762539758134,0.04424062,161.13,161.09,3.12]
[1762539758422,3.22424062,161.13,161.07,5.591]
[1762539758814,3.22424062,161.13,161.08,8.7106]
[1762539759716,3.22424062,161.13,161.06,5.5914]
[1762539759915,3.22424062,161.13,161.06,3.12]
[1762539760321,3.22424062,161.13,161.08,5.5907]